[Event "Dalheimers Hus Rapid Open"]
[Site "Dalheimers Hus, Slottsskogsgatan 12, Gothenburg, Sweden"]
[Date "2024.04.14"]
[Round "8.9"]
[White "Wellevit, Tomas"]
[Black "Sjoholm, Emil"]
[Result "0-1"]
[TimeControl "15 minutes + 5 seconds per move from move one."]
[WhiteFideId "1731963"]
[BlackFideId "1720449"]
[WhiteElo "1978"]
[BlackElo "2016"]

1. e4 {[%clk 00:15:09]} {[%emt 00:00:01]} e5 {[%clk 00:15:09]} {[%emt
00:00:01]} 2. Nf3 {[%clk 00:15:13]} Nc6 {[%clk 00:15:13]} {[%emt 00:00:02]} 3.
d4 {[%clk 00:15:17]} exd4 {[%clk 00:15:17]} {[%emt 00:00:02]} 4. Bc4 {[%clk
00:15:21]} Nf6 {[%clk 00:15:19]} {[%emt 00:00:03]} 5. Qe2 {[%clk 00:15:14]}
{[%emt 00:00:12]} Bb4+ {[%clk 00:15:00]} {[%emt 00:00:24]} 6. c3 {[%clk
00:15:14]} {[%emt 00:00:05]} dxc3 {[%clk 00:14:34]} {[%emt 00:00:30]} 7. bxc3
{[%clk 00:15:18]} {[%emt 00:00:02]} Ba5 {[%clk 00:14:06]} {[%emt 00:00:33]} 8.
e5 {[%clk 00:15:18]} {[%emt 00:00:04]} O-O {[%clk 00:13:49]} {[%emt 00:00:22]}
9. exf6 {[%clk 00:15:19]} {[%emt 00:00:05]} Re8 {[%clk 00:13:36]} {[%emt
00:00:18]} 10. Be3 {[%clk 00:15:23]} d5 {[%clk 00:13:26]} {[%emt 00:00:15]} 11.
Bb5 {[%clk 00:15:18]} {[%emt 00:00:11]} Qxf6 {[%clk 00:13:09]} {[%emt
00:00:21]} 12. O-O {[%clk 00:15:05]} {[%emt 00:00:18]} Bg4 {[%clk 00:13:07]}
{[%emt 00:00:07]} 13. h3 {[%clk 00:14:51]} {[%emt 00:00:19]} Bh5 {[%clk
00:10:56]} {[%emt 00:02:16]} 14. g4 {[%clk 00:14:20]} {[%emt 00:00:36]} Bg6
{[%clk 00:10:52]} {[%emt 00:00:08]} 15. Bxc6 {[%clk 00:13:57]} {[%emt
00:00:29]} Qxc6 {[%clk 00:10:30]} {[%emt 00:00:28]} 16. Nd4 {[%clk 00:13:55]}
{[%emt 00:00:06]} Qd7 {[%clk 00:10:20]} {[%emt 00:00:15]} 17. Qd2 {[%clk
00:12:39]} {[%emt 00:01:21]} h5 {[%clk 00:09:56]} {[%emt 00:00:29]} 18. f3
{[%clk 00:11:02]} {[%emt 00:01:41]} Bb6 {[%clk 00:09:06]} {[%emt 00:00:55]} 19.
Bf2 {[%clk 00:10:31]} {[%emt 00:00:36]} c5 {[%clk 00:08:30]} {[%emt 00:00:41]}
20. Ne2 {[%clk 00:10:24]} {[%emt 00:00:13]} hxg4 {[%clk 00:08:23]} {[%emt
00:00:12]} 21. hxg4 {[%clk 00:10:28]} Re7 {[%clk 00:07:00]} {[%emt 00:01:28]}
22. Nf4 {[%clk 00:10:27]} {[%emt 00:00:05]} d4 {[%clk 00:06:39]} {[%emt
00:00:27]} 23. Nxg6 {[%clk 00:10:23]} {[%emt 00:00:09]} fxg6 {[%clk 00:06:42]}
{[%emt 00:00:02]} 24. cxd4 {[%clk 00:10:23]} {[%emt 00:00:05]} cxd4 {[%clk
00:06:45]} {[%emt 00:00:01]} 25. Na3 {[%clk 00:10:08]} {[%emt 00:00:20]} Rae8
{[%clk 00:06:13]} {[%emt 00:00:37]} 26. Rae1 {[%clk 00:10:06]} {[%emt
00:00:08]} Qa4 {[%clk 00:05:58]} {[%emt 00:00:20]} 27. Rxe7 {[%clk 00:09:44]}
{[%emt 00:00:27]} Rxe7 {[%clk 00:06:02]} {[%emt 00:00:02]} 28. Qb2 {[%clk
00:09:17]} {[%emt 00:00:32]} Rf7 {[%clk 00:05:47]} {[%emt 00:00:19]} 29. Kg2
{[%clk 00:09:00]} {[%emt 00:00:21]} Rxf3 {[%clk 00:04:36]} {[%emt 00:01:17]} 30.
Kxf3 {[%clk 00:08:57]} {[%emt 00:00:07]} Qc6+ {[%clk 00:04:40]} {[%emt
00:00:02]} 31. Kg3 {[%clk 00:08:20]} {[%emt 00:00:41]} Bc7+ {[%clk 00:04:36]}
{[%emt 00:00:09]} 32. Kh4 {[%clk 00:04:29]} {[%emt 00:03:56]} g5+ {[%clk
00:04:29]} {[%emt 00:00:13]} 33. Kxg5 {[%clk 00:04:19]} {[%emt 00:00:15]} Qf6+
{[%clk 00:04:31]} 0-1

[Event "Dalheimers Hus Rapid Open"]
[Site "Dalheimers Hus, Slottsskogsgatan 12, Gothenburg, Sweden"]
[Date "2024.04.14"]
[Round "8.10"]
[White "Winsnes, Rikard"]
[Black "Wesslen, Ulf"]
[Result "1-0"]
[TimeControl "15 minutes + 5 seconds per move from move one."]
[WhiteTitle "IM"]
[WhiteFideId "1700430"]
[BlackFideId "1705199"]
[WhiteElo "2352"]
[BlackElo "1949"]

1. e4 {[%clk 00:15:08]} {[%emt 00:00:03]} e6 {[%clk 00:14:57]} {[%emt
00:00:13]} 2. d4 {[%clk 00:15:09]} {[%emt 00:00:04]} d5 {[%clk 00:14:57]}
{[%emt 00:00:04]} 3. Nd2 {[%clk 00:15:10]} {[%emt 00:00:04]} Nf6 {[%clk
00:14:46]} {[%emt 00:00:16]} 4. e5 {[%clk 00:15:12]} {[%emt 00:00:04]} Nfd7
{[%clk 00:14:42]} {[%emt 00:00:09]} 5. Ngf3 {[%clk 00:15:11]} {[%emt 00:00:06]}
c5 {[%clk 00:14:00]} {[%emt 00:00:47]} 6. c3 {[%clk 00:15:05]} {[%emt
00:00:11]} Nc6 {[%clk 00:13:10]} {[%emt 00:00:55]} 7. Bd3 {[%clk 00:15:06]}
{[%emt 00:00:04]} Be7 {[%clk 00:12:17]} {[%emt 00:00:58]} 8. O-O {[%clk
00:15:01]} {[%emt 00:00:10]} O-O {[%clk 00:11:21]} {[%emt 00:01:01]} 9. Re1
{[%clk 00:14:42]} {[%emt 00:00:24]} cxd4 {[%clk 00:09:13]} {[%emt 00:02:13]} 10.
cxd4 {[%clk 00:14:42]} {[%emt 00:00:06]} Re8 {[%clk 00:09:03]} {[%emt
00:00:14]} 11. Nf1 {[%clk 00:13:09]} {[%emt 00:01:38]} f6 {[%clk 00:07:44]}
{[%emt 00:01:24]} 12. exf6 {[%clk 00:06:26]} {[%emt 00:06:48]} Bxf6 {[%clk
00:07:38]} {[%emt 00:00:12]} 13. Ng3 {[%clk 00:05:23]} {[%emt 00:01:07]} e5
{[%clk 00:06:20]} {[%emt 00:01:23]} 14. dxe5 {[%clk 00:05:20]} {[%emt
00:00:08]} Ndxe5 {[%clk 00:06:15]} {[%emt 00:00:09]} 15. Nxe5 {[%clk 00:05:04]}
{[%emt 00:00:21]} Nxe5 {[%clk 00:05:58]} {[%emt 00:00:22]} 16. Bb5 {[%clk
00:04:20]} {[%emt 00:00:50]} Bg4 {[%clk 00:04:56]} {[%emt 00:01:06]} 17. Qd2
{[%clk 00:02:59]} {[%emt 00:01:26]} Re7 {[%clk 00:04:16]} {[%emt 00:00:46]} 18.
Be2 {[%clk 00:01:59]} {[%emt 00:01:05]} Be6 {[%clk 00:04:04]} {[%emt 00:00:16]}
19. Nh5 {[%clk 00:01:55]} {[%emt 00:00:09]} Rc7 {[%clk 00:03:40]} {[%emt
00:00:30]} 20. Bf1 {[%clk 00:01:47]} {[%emt 00:00:14]} Rac8 {[%clk 00:02:28]}
{[%emt 00:01:16]} 21. f4 {[%clk 00:01:05]} {[%emt 00:00:47]} Rc2 {[%clk
00:01:56]} {[%emt 00:00:38]} 22. Qe3 {[%clk 00:01:04]} {[%emt 00:00:05]} d4
{[%clk 00:02:00]} 23. Nxf6+ {[%clk 00:00:40]} {[%emt 00:00:29]} Kf7 {[%clk
00:01:19]} {[%emt 00:00:46]} 24. Qxe5 {[%clk 00:00:39]} {[%emt 00:00:06]} gxf6
{[%clk 00:01:21]} {[%emt 00:00:03]} 25. Qxe6+ {[%clk 00:00:42]} {[%emt
00:00:02]} Kf8 {[%clk 00:01:10]} {[%emt 00:00:16]} 26. Bd3 {[%clk 00:00:38]}
{[%emt 00:00:09]} R2c6 {[%clk 00:00:57]} {[%emt 00:00:18]} 27. Qe4 {[%clk
00:00:38]} {[%emt 00:00:04]} R8c7 {[%clk 00:00:55]} {[%emt 00:00:08]} 28. f5
{[%clk 00:00:41]} {[%emt 00:00:02]} Rc5 {[%clk 00:00:50]} {[%emt 00:00:09]} 29.
Bh6+ {[%clk 00:00:39]} {[%emt 00:00:07]} Kg8 {[%clk 00:00:32]} {[%emt
00:00:24]} 30. Qe6+ {[%clk 00:00:41]} {[%emt 00:00:02]} Kh8 {[%clk 00:00:36]}
31. Qe8+ {[%clk 00:00:27]} {[%emt 00:00:19]} 1-0

[Event "Dalheimers Hus Rapid Open"]
[Site "Dalheimers Hus, Slottsskogsgatan 12, Gothenburg, Sweden"]
[Date "2024.04.14"]
[Round "8.11"]
[White "Sandberg, Lucas"]
[Black "Brzezinski, Adam"]
[Result "0-1"]
[TimeControl "15 minutes + 5 seconds per move from move one."]
[WhiteFideId "1773712"]
[BlackFideId "1710460"]
[WhiteElo "1926"]
[BlackElo "2111"]

1. e4 {[%clk 00:15:08]} {[%emt 00:00:02]} e6 {[%clk 00:15:09]} {[%emt
00:00:02]} 2. Nf3 {[%clk 00:15:12]} d5 {[%clk 00:15:10]} {[%emt 00:00:04]} 3.
Nc3 {[%clk 00:15:16]} d4 {[%clk 00:15:13]} {[%emt 00:00:02]} 4. Ne2 {[%clk
00:15:19]} {[%emt 00:00:02]} c5 {[%clk 00:15:17]} {[%emt 00:00:02]} 5. c3
{[%clk 00:15:18]} {[%emt 00:00:06]} Nf6 {[%clk 00:15:18]} {[%emt 00:00:02]} 6.
e5 {[%clk 00:14:13]} {[%emt 00:01:11]} Nfd7 {[%clk 00:15:21]} {[%emt 00:00:01]}
7. cxd4 {[%clk 00:14:16]} {[%emt 00:00:03]} cxd4 {[%clk 00:15:25]} 8. Nexd4
{[%clk 00:14:17]} {[%emt 00:00:04]} Nxe5 {[%clk 00:15:09]} {[%emt 00:00:21]} 9.
Bb5+ {[%clk 00:13:31]} {[%emt 00:00:52]} Nec6 10. Nxc6 {[%clk 00:13:29]} Nxc6
{[%clk 00:14:22]} {[%emt 00:00:03]} 11. O-O {[%clk 00:13:21]} {[%emt 00:00:14]}
Bd7 {[%clk 00:14:25]} {[%emt 00:00:02]} 12. d4 {[%clk 00:13:21]} {[%emt
00:00:05]} a6 {[%clk 00:14:28]} {[%emt 00:00:03]} 13. Bc4 {[%clk 00:11:55]}
{[%emt 00:01:30]} Na5 {[%clk 00:14:23]} {[%emt 00:00:10]} 14. Be2 {[%clk
00:11:39]} {[%emt 00:00:21]} Bb5 {[%clk 00:14:24]} {[%emt 00:00:04]} 15. Bxb5+
{[%clk 00:11:37]} {[%emt 00:00:07]} axb5 {[%clk 00:14:26]} {[%emt 00:00:04]} 16.
Qe2 {[%clk 00:11:36]} {[%emt 00:00:05]} Qd5 {[%clk 00:14:13]} {[%emt 00:00:18]}
17. Qe5 {[%clk 00:10:51]} {[%emt 00:00:50]} Qxe5 {[%clk 00:14:12]} {[%emt
00:00:06]} 18. dxe5 {[%clk 00:10:54]} {[%emt 00:00:02]} Bc5 {[%clk 00:14:03]}
{[%emt 00:00:14]} 19. Bd2 {[%clk 00:10:27]} {[%emt 00:00:32]} Nc4 {[%clk
00:13:53]} {[%emt 00:00:15]} 20. Bc3 {[%clk 00:10:14]} {[%emt 00:00:17]} b4
{[%clk 00:12:59]} {[%emt 00:01:01]} 21. b3 {[%clk 00:08:44]} {[%emt 00:01:34]}
bxc3 {[%clk 00:12:37]} {[%emt 00:00:27]} 22. bxc4 {[%clk 00:08:48]} Ba3 {[%clk
00:10:42]} {[%emt 00:02:00]} 23. Ne1 {[%clk 00:04:25]} {[%emt 00:04:28]} Bb2
{[%clk 00:10:42]} {[%emt 00:00:05]} 24. Rb1 {[%clk 00:04:29]} Rxa2 {[%clk
00:10:36]} {[%emt 00:00:11]} 25. Nd3 {[%clk 00:04:32]} {[%emt 00:00:02]} Ke7
{[%clk 00:10:27]} {[%emt 00:00:13]} 26. Nxb2 {[%clk 00:04:31]} {[%emt
00:00:06]} cxb2 {[%clk 00:10:30]} {[%emt 00:00:02]} 27. g3 {[%clk 00:04:29]}
{[%emt 00:00:08]} Rc8 {[%clk 00:10:30]} {[%emt 00:00:05]} 0-1